fUST/lending_fUST_20240917
["ID","MTS","AMOUNT","RATE_DAILY","PERIOD"]
[338354001,1726547441083,-23742.22509723,0.00019352,5]
[338354003,1726547441092,-151.0,0.00019352,2]
[338354005,1726547441101,-151.0,0.00019352,2]
[338354006,1726547441111,-151.0,0.00019352,2]
[338354008,1726547441120,-151.0,0.00019352,2]
[338354010,1726547441130,-151.0,0.00019352,2]
[338354011,1726547441139,-2904.060664,0.00019352,2]
[338354013,1726547441150,-2904.060664,0.00019352,2]
[338354015,1726547441159,-151.0,0.00019352,2]
[338354017,1726547441169,-151.0,0.00019352,2]
[338354018,1726547441179,-151.0,0.00019352,2]
[338354020,1726547441188,-151.0,0.00019352,2]
[338354022,1726547441199,-332.852387,0.00019352,2]
[338354023,1726547441208,-151.0,0.00019352,2]
[338354025,1726547441218,-151.0,0.00019352,2]
[338354027,1726547441228,-2279.977578,0.00019352,2]
[338354029,1726547441237,-332.852387,0.00019352,2]
[338354031,1726547441247,-151.0,0.00019352,2]
[338354033,1726547441257,-246.603779,0.00019352,2]
[338354035,1726547441277,-151.0,0.00019352,2]
[338354037,1726547441287,-2279.977578,0.00019352,2]
[338354039,1726547441296,-152.765858,0.00019352,2]
[338354041,1726547441306,-151.0,0.00019352,2]
[338354043,1726547441316,-151.0,0.00019352,2]
[338354044,1726547441326,-2416.18015,0.00019352,2]
[338354045,1726547441338,-2416.18015,0.00019352,2]
[338354046,1726547441347,-151.0,0.00019352,2]
[338354047,1726547441356,-279.253674,0.00019352,2]
[338354048,1726547441366,-279.253674,0.00019352,2]
[338354049,1726547441377,-151.0,0.00019352,2]
[338354050,1726547441386,-1578.423904,0.00019352,2]
[338354051,1726547441395,-1578.423904,0.00019352,2]
[338354052,1726547441405,-776.12065,0.00019352,2]
[338354053,1726547441416,-776.12065,0.00019352,2]
[338354054,1726547441426,-1415.185085,0.00019352,2]
[338354055,1726547441436,-1415.185085,0.00019352,2]
[338354056,1726547441446,-500.0,0.00019359,2]
[338354057,1726547441456,-501.02034635,0.0001936,2]
[338354058,1726547441465,-500.48513089,0.0001936,2]
[338354059,1726547441474,-500.99330819,0.0001936,2]
[338354060,1726547441484,-3000.0,0.0001936,2]
[338354061,1726547441493,-2163.56613968,0.0001936,3]
[338354062,1726547441503,-3000.0,0.0001937,2]
[338354063,1726547441516,-175.033085,0.00019376,2]
[338354064,1726547441527,-3000.0,0.0001938,2]
[338354065,1726547441537,-500.0,0.00019387,2]
[338354066,1726547441546,-500.0,0.00019387,2]
[338354067,1726547441556,-500.0,0.00019387,2]
[338354068,1726547441567,-3000.0,0.0001939,2]
[338354070,1726547441576,-500.0,0.00019393,2]
[338354071,1726547441586,-150.41408983,0.00019397,2]
[338354072,1726547441597,-150.112233,0.000194,2]
[338354073,1726547441606,-3000.0,0.000194,2]
[338354075,1726547441615,-600.0,0.000194,2]
[338354077,1726547441625,-500.82512629,0.00019407,2]
[338354079,1726547441635,-3000.0,0.0001941,2]
[338354081,1726547441644,-3000.0,0.0001942,2]
[338354083,1726547441654,-605.43771915,0.00019425,2]
[338354085,1726547441663,-3000.0,0.0001943,2]
[338354087,1726547441673,-3000.0,0.0001944,2]
[338354089,1726547441682,-3000.0,0.0001945,2]
[338354091,1726547441691,-3000.0,0.0001946,2]
[338354093,1726547441701,-2163.56613968,0.00019465,3]
[338354095,1726547441710,-3000.0,0.0001947,2]
[338354097,1726547441720,-2163.56613968,0.00019475,3]
[338354099,1726547441730,-314.4,0.00019479,2]
[338354101,1726547441741,-3000.0,0.0001948,2]
[338354103,1726547441752,-600.195,0.00019485,2]
[338354105,1726547441761,-150.556,0.00019485,2]
[338354106,1726547441771,-688.083,0.00019485,2]
[338354108,1726547441780,-48571.639,0.00019485,2]
[338354110,1726547441789,-3000.0,0.0001949,2]
[338354112,1726547441799,-150.112233,0.000195,2]
[338354115,1726547441810,-500.0,0.000195,2]
[338354116,1726547441819,-645.7238552,0.000195,2]
[338354118,1726547441829,-3573.131914,0.000195,2]
[338354120,1726547441838,-214.0,0.000195,10]
[338354122,1726547441847,-500.0,0.000195,2]
[338354124,1726547441856,-6709.10361058,0.00019504,2]
[338354126,1726547441866,-605.43771915,0.00019507,2]
[338354128,1726547441875,-150.41408983,0.00019507,2]
[338354130,1726547441884,-2163.56613968,0.00019516,3]
[338354132,1726547441894,-167.53524672,0.00019534,2]
[338354134,1726547441903,-605.43771915,0.00019589,2]
[338354136,1726547441913,-150.41408983,0.00019589,2]
[338354139,1726547441923,-150.112233,0.000196,2]
[338354141,1726547441932,-600.0,0.000196,2]
[338354143,1726547441942,-187.0,0.0001961,2]
[338354145,1726547441952,-175.033085,0.00019618,2]
[338354147,1726547441962,-314.4,0.00019647,2]
[338354149,1726547441972,-605.43771915,0.00019699,2]
[338354151,1726547441982,-150.41408983,0.00019699,2]
[338354153,1726547441992,-150.112233,0.000197,2]
[338354155,1726547442002,-150.41408983,0.00019781,2]
[338354157,1726547442014,-6709.10361061,0.00019796,2]
[338354159,1726547442024,-151.0,0.000198,2]
[338354161,1726547442033,-151.0,0.000198,2]
[338354163,1726547442042,-1034.03,0.000198,2]
[338354165,1726547442052,-150.112233,0.000198,2]
[338354167,1726547442061,-7292.41900405,0.000198,2]
[338354169,1726547442071,-600.0,0.000198,2]
[338354171,1726547442080,-314.4,0.00019815,2]
[338354173,1726547442089,-175.033085,0.00019861,2]
[338354175,1726547442098,-3430.149289,0.00019863,2]
[338354177,1726547442107,-300.0,0.000199,8]
[338354179,1726547442117,-2703.47754782,0.00019939,2]
[338354181,1726547442126,-6518.92032803,0.00019981,2]
[338354183,1726547442135,-1039.563439,0.00019981,2]
[338354185,1726547442145,-1039.563439,0.00019981,2]
[338354187,1726547442154,-314.4,0.00019983,2]
[338354188,1726547442164,-2163.56613968,0.0001999,3]
[338354190,1726547442174,-160.97639217,0.00019999,2]
[338354192,1726547442183,-160.0,0.00019999,2]
[338354194,1726547442193,-150.01,0.00019999,2]
[338354196,1726547442202,-2226.5289793,0.00019999,2]
[338354198,1726547442212,-2466.23348057,0.0002,5]
[338354200,1726547442222,-151.0,0.0002,2]
[338354202,1726547442232,-151.0,0.0002,2]
[338354204,1726547442241,-151.0,0.0002,2]
[338354206,1726547442251,-279.470345,0.0002,2]
[338354208,1726547442261,-151.0,0.0002,2]
[338354210,1726547442271,-151.0,0.0002,2]
[338354212,1726547442280,-151.0,0.0002,2]
[338354214,1726547442289,-151.0,0.0002,2]
[338354216,1726547442299,-176.128685,0.0002,2]
[338354218,1726547442309,-176.128685,0.0002,2]
[338354220,1726547442319,-176.128685,0.0002,2]
[338354222,1726547442328,-176.128685,0.0002,2]
[338354224,1726547442338,-176.128685,0.0002,2]
[338354226,1726547442347,-176.128685,0.0002,2]
[338354228,1726547442357,-151.0,0.0002,2]
[338354230,1726547442366,-151.0,0.0002,2]
[338354232,1726547442376,-151.0,0.0002,2]
[338354234,1726547442386,-154.154453,0.0002,2]
[338354236,1726547442395,-151.0,0.0002,2]
[338354238,1726547442405,-151.0,0.0002,2]
[338354240,1726547442415,-151.0,0.0002,2]
[338354242,1726547442425,-151.0,0.0002,2]
[338354244,1726547442434,-151.0,0.0002,2]
[338354246,1726547442444,-151.0,0.0002,2]
[338354248,1726547442453,-254.803524,0.0002,2]
[338354250,1726547442462,-151.0,0.0002,2]
[338354252,1726547442473,-151.0,0.0002,2]
[338354254,1726547442482,-151.0,0.0002,2]
[338354256,1726547442492,-151.0,0.0002,2]
[338354258,1726547442502,-251.20258883,0.0002,2]
[338354260,1726547442512,-151.0,0.0002,2]
[338354263,1726547442523,-212.653544,0.0002,2]
[338354265,1726547442533,-192.28908446,0.0002,2]
[338354267,1726547442542,-151.0,0.0002,2]
[338354269,1726547442551,-151.0,0.0002,2]
[338354271,1726547442561,-208.763245,0.0002,2]
[338354272,1726547442570,-335606.90960848,0.0002,2]
[338354275,1726547442581,-618.53756452,0.0002,2]
[338354277,1726547442591,-104835.81,0.0002,2]
[338354279,1726547442601,-466694.13,0.0002,2]
[338354281,1726547442611,-7664.78,0.0002,2]
[338354283,1726547442620,-64512.1,0.0002,2]
[338354284,1726547442629,-202.266851,0.0002,2]
[338354286,1726547442639,-202.266851,0.0002,2]
[338354289,1726547442649,-156.283082,0.0002,2]
[338354290,1726547442658,-156.283082,0.0002,2]
[338354293,1726547442669,-202.266851,0.0002,2]
[338354294,1726547442678,-202.266851,0.0002,2]
[338354296,1726547442688,-156.283082,0.0002,2]
[338354298,1726547442697,-156.283082,0.0002,2]
[338354300,1726547442707,-184.0,0.0002,2]
[338354302,1726547442716,-184.5,0.0002,2]
[338354304,1726547442726,-151.0,0.0002,2]
[338354306,1726547442736,-151.0,0.0002,2]
[338354308,1726547442746,-178.955856,0.0002,2]
[338354310,1726547442755,-178.955856,0.0002,2]
[338354312,1726547442766,-178.955856,0.0002,2]
[338354331,1726547442935,-178.955856,0.0002,2]
[338354333,1726547442946,-151.0,0.0002,2]
[338354335,1726547442956,-151.0,0.0002,2]
[338354337,1726547442965,-151.0,0.0002,2]
[338354339,1726547442975,-151.0,0.0002,2]
[338354341,1726547442985,-151.0,0.0002,2]
[338354343,1726547442995,-151.0,0.0002,2]
[338354345,1726547443004,-151.0,0.0002,2]
[338354347,1726547443015,-201.730771,0.0002,2]
[338354349,1726547443024,-351.657342,0.0002,2]
[338354351,1726547443034,-351.657342,0.0002,2]
[338354353,1726547443043,-163.263951,0.0002,2]
[338354355,1726547443052,-351.657342,0.0002,2]
[338354357,1726547443062,-163.263951,0.0002,2]
[338354359,1726547443072,-351.657342,0.0002,2]
[338354361,1726547443081,-163.263951,0.0002,2]
[338354363,1726547443091,-163.263951,0.0002,2]
[338354365,1726547443101,-151.0,0.0002,2]
[338354367,1726547443111,-645.7238552,0.0002,2]
[338354369,1726547443120,-151.0,0.0002,2]
[338354371,1726547443130,-1903.03768,0.0002,2]
[338354373,1726547443139,-1903.03768,0.0002,2]
[338354375,1726547443149,-791.536608,0.0002,2]
[338354377,1726547443158,-791.536608,0.0002,2]
[338354379,1726547443168,-791.536608,0.0002,2]
[338354381,1726547443178,-917.23697,0.0002,2]
[338354383,1726547443187,-917.23697,0.0002,2]
[338354385,1726547443197,-791.536608,0.0002,2]
[338354387,1726547443207,-917.23697,0.0002,2]
[338354389,1726547443216,-917.23697,0.0002,2]
[338354391,1726547443226,-474.402333,0.0002,2]
[338354393,1726547443235,-474.402333,0.0002,2]
[338354395,1726547443245,-151.0,0.0002,2]
[338354397,1726547443254,-151.0,0.0002,2]
[338354399,1726547443264,-263.36285,0.0002,2]
[338354401,1726547443273,-263.36285,0.0002,2]
[338354403,1726547443283,-263.36285,0.0002,2]
[338354405,1726547443294,-263.36285,0.0002,2]
[338354407,1726547443304,-1923.832792,0.0002,2]
[338354409,1726547443313,-291.050099,0.0002,2]
[338354411,1726547443322,-1923.832792,0.0002,2]
[338354413,1726547443337,-1923.832792,0.0002,2]
[338354415,1726547443347,-1923.832792,0.0002,2]
[338354417,1726547443356,-160.716215,0.0002,2]
[338354419,1726547443366,-160.716215,0.0002,2]
[338354421,1726547443376,-160.716215,0.0002,2]
[338354423,1726547443385,-160.716215,0.0002,2]
[338354425,1726547443395,-339.433553,0.0002,2]
[338354427,1726547443406,-339.433553,0.0002,2]
[338354429,1726547443415,-1075.205265,0.0002,2]
[338354431,1726547443424,-1075.205265,0.0002,2]
[338354433,1726547443433,-524.852005,0.0002,2]
[338354435,1726547443442,-524.852005,0.0002,2]
[338354437,1726547443451,-151.0,0.0002,2]
[338354439,1726547443461,-819.44016,0.0002,2]
[338354441,1726547443470,-819.44016,0.0002,2]
[338354443,1726547443479,-151.0,0.0002,2]
[338354445,1726547443488,-151.0,0.0002,2]
[338354447,1726547443498,-205.896541,0.0002,2]
[338354449,1726547443510,-685.082497,0.0002,2]
[338354451,1726547443519,-685.082497,0.0002,2]
[338354453,1726547443529,-685.082497,0.0002,2]
[338354455,1726547443538,-685.082497,0.0002,2]
[338354456,1726547443547,-161.018324,0.0002,2]
[338354458,1726547443556,-151.0,0.0002,2]
[338354460,1726547443565,-151.0,0.0002,2]
[338354462,1726547443574,-151.0,0.0002,2]
[338354464,1726547443584,-151.0,0.0002,2]
[338354466,1726547443593,-151.0,0.0002,2]
[338354468,1726547443602,-210.784734,0.0002,2]
[338354470,1726547443611,-151.0,0.0002,2]
[338354472,1726547443620,-300.896589,0.0002,2]
[338354474,1726547443630,-2904.060664,0.0002,2]
[338354476,1726547443639,-2904.060664,0.0002,2]
[338354478,1726547443648,-2904.060664,0.0002,2]
[338354480,1726547443657,-2904.060664,0.0002,2]
[338354482,1726547443667,-151.0,0.0002,2]
[338354484,1726547443676,-151.0,0.0002,2]
[338354486,1726547443686,-151.0,0.0002,2]
[338354488,1726547443695,-151.0,0.0002,2]
[338354490,1726547443704,-153.565439,0.0002,2]
[338354492,1726547443714,-151.0,0.0002,2]
[338354494,1726547443724,-151.0,0.0002,2]
[338354496,1726547443733,-332.852387,0.0002,2]
[338354498,1726547443743,-332.852387,0.0002,2]
[338354500,1726547443753,-151.0,0.0002,2]
[338354502,1726547443763,-151.0,0.0002,2]
[338354504,1726547443773,-151.0,0.0002,2]
[338354506,1726547443782,-151.0,0.0002,2]
[338354508,1726547443792,-1475.35809117,0.0002,2]
[338354594,1726547444735,-804.61948683,0.0002,2]
[338354596,1726547444745,-332.852387,0.0002,2]
[338354598,1726547444755,-2279.977578,0.0002,2]
[338354601,1726547444770,-332.852387,0.0002,2]
[338354603,1726547444782,-285.314537,0.0002,2]
[338354605,1726547444791,-151.0,0.0002,2]
[338354607,1726547444801,-250.133637,0.0002,2]
[338354609,1726547444811,-2279.977578,0.0002,2]
[338354611,1726547444820,-2279.977578,0.0002,2]
[338354613,1726547444830,-151.0,0.0002,2]
[338354637,1726547445057,-151.0,0.0002,2]
[338354639,1726547445067,-151.0,0.0002,2]
[338354641,1726547445077,-151.0,0.0002,2]
[338354643,1726547445086,-2416.18015,0.0002,2]
[338354645,1726547445096,-2416.18015,0.0002,2]
[338354647,1726547445106,-4000.0,0.0002,2]
[338354650,1726547445116,-4000.0,0.0002,2]
[338354652,1726547445125,-4000.0,0.0002,2]
[338354654,1726547445135,-4000.0,0.0002,2]
[338354656,1726547445145,-4000.0,0.0002,2]
[338354658,1726547445154,-4000.0,0.0002,2]
[338354660,1726547445163,-4000.0,0.0002,2]
[338354662,1726547445172,-859.278963,0.0002,2]
[338354664,1726547445181,-2416.18015,0.0002,2]
[338354666,1726547445190,-2416.18015,0.0002,2]
[338354668,1726547445199,-196.974998,0.0002,2]
[338354670,1726547445208,-279.253674,0.0002,2]
[338354672,1726547445217,-279.253674,0.0002,2]
[338354674,1726547445227,-279.253674,0.0002,2]
[338354676,1726547445236,-279.253674,0.0002,2]
[338354678,1726547445245,-151.0,0.0002,2]
[338354680,1726547445255,-151.0,0.0002,2]
[338354682,1726547445266,-1578.423904,0.0002,2]
[338354684,1726547445275,-1578.423904,0.0002,2]
[338354686,1726547445285,-1578.423904,0.0002,2]
[338354688,1726547445294,-1578.423904,0.0002,2]
[338354690,1726547445303,-776.12065,0.0002,2]
[338354692,1726547445313,-4308.71902169,0.0002,2]
[338354694,1726547445322,-776.12065,0.0002,2]
[338354696,1726547445332,-149626.8535684,0.0002,2]
[338354698,1726547445342,-776.12065,0.0002,2]
[338354700,1726547445352,-776.12065,0.0002,2]
[338354702,1726547445362,-151.23906569,0.0002,2]
[338354704,1726547445372,-1002.241943,0.0002,2]
[338354706,1726547445381,-600.0,0.0002,2]
[338354708,1726547445390,-1039.563439,0.0002,2]
[338354710,1726547445400,-1415.185085,0.0002,2]
[338354711,1726547445411,-1039.563439,0.0002,2]
[338354713,1726547445420,-1415.185085,0.0002,2]
[338354715,1726547445429,-1039.563439,0.0002,2]
[338354717,1726547445439,-1039.563439,0.0002,2]
[338354719,1726547445449,-1415.185085,0.0002,2]
[338354722,1726547445458,-1415.185085,0.0002,2]
[338354724,1726547445467,-246.178605,0.0002001,2]
[338354726,1726547445477,-166.722294,0.0002001,2]
[338354728,1726547445487,-434.4005391,0.00020055,2]
[338354730,1726547445497,-200.0,0.000201,2]
[338354732,1726547445506,-175.033085,0.00020103,2]
[338354734,1726547445515,-314.4,0.00020151,2]
[338354736,1726547445524,-356.841684,0.00020187,2]
[338354738,1726547445534,-643.47345788,0.000202,2]
[338354740,1726547445544,-246.178605,0.00020254,2]
[338354742,1726547445553,-11107.5038456,0.00020274,2]
[338354744,1726547445562,-411.4520728,0.00020274,2]
[338354746,1726547445571,-411.4520728,0.00020274,2]
[338354748,1726547445581,-411.4520728,0.00020274,2]
[338354750,1726547445590,-411.4520728,0.00020274,2]
[338354752,1726547445599,-411.4520728,0.00020274,2]
[338354754,1726547445608,-411.4520728,0.00020274,2]
[338354756,1726547445618,-411.4520728,0.00020274,2]
[338354758,1726547445628,-411.4520728,0.00020274,2]
[338354760,1726547445637,-411.4520728,0.00020274,2]
[338354762,1726547445646,-411.4520728,0.00020274,2]
[338354764,1726547445655,-411.4520728,0.00020274,2]
[338354766,1726547445665,-411.4520728,0.00020274,2]
[338354768,1726547445674,-411.4520728,0.00020274,2]
[338354770,1726547445683,-411.4520728,0.00020274,2]
[338354772,1726547445692,-411.4520728,0.00020274,2]
[338354774,1726547445702,-314.4,0.00020319,2]
[338354776,1726547445711,-175.033085,0.00020345,2]
[338354778,1726547445720,-3200.0,0.00020352,2]
[338354780,1726547445729,-300.0,0.00020352,2]
[338354781,1726547445739,-150.0,0.00020352,2]
[338354783,1726547445748,-23313.27885447,0.00020377,2]
[338354785,1726547445758,-500.0,0.00020377,2]
[338354787,1726547445768,-151.0,0.000204,2]
[338354789,1726547445778,-151.0,0.000204,2]
[338354791,1726547445787,-151.0,0.000204,2]
[338354793,1726547445797,-176.128685,0.000204,2]
[338354795,1726547445806,-176.128685,0.000204,2]
[338354797,1726547445815,-176.128685,0.000204,2]
[338354799,1726547445825,-176.128689,0.000204,2]
[338354801,1726547445835,-151.0,0.000204,2]
[338354803,1726547445845,-151.0,0.000204,2]
[338354806,1726547445854,-3270.68,0.000204,2]
[338354808,1726547445864,-500.0,0.00020413,2]
[338354810,1726547445873,-500.58367045,0.0002042,2]
[338354812,1726547445883,-500.92205063,0.0002042,2]
[338354814,1726547445893,-301.70782929,0.0002042,2]
[338354816,1726547445902,-1000.0,0.0002042,2]
[338354817,1726547445912,-314.4,0.00020487,2]
[338354819,1726547445921,-216.085922,0.00020498,2]
[338354821,1726547445930,-246.178605,0.00020498,2]
[338354824,1726547445941,-166.722294,0.00020498,2]
[338354826,1726547445950,-645.7238552,0.000205,2]
[338354827,1726547445960,-200.0,0.0002051,2]
[338354829,1726547445969,-411.4520728,0.00020548,2]
[338354832,1726547445980,-411.4520728,0.00020548,2]
[338354833,1726547445989,-3430.149289,0.00020548,2]
[338354836,1726547445999,-587.0,0.00020583,2]
[338354838,1726547446008,-295.3382894,0.00020603,2]
[338354840,1726547446018,-1000.0,0.00020643,2]
[338354842,1726547446028,-314.4,0.00020656,2]
[338354844,1726547446038,-977.0724992,0.00020673,2]
[338354846,1726547446047,-1000.0,0.00020715,2]
[338354848,1726547446057,-1039.563439,0.00020715,2]
[338354850,1726547446066,-1039.563439,0.00020715,2]
[338354852,1726547446075,-1000.0,0.0002072,2]
[338354854,1726547446085,-1000.0,0.00020757,2]
[338354856,1726547446094,-609.1364066,0.00020757,2]
[338354857,1726547446103,-701.17519014,0.00020763,2]
[338354860,1726547446113,-314.4,0.00020824,2]
[338354862,1726547446122,-187.0,0.0002085,3]
[338354864,1726547446131,-587.0,0.00020888,2]
[338354866,1726547446140,-2703.47754782,0.00020889,2]
[338354867,1726547446150,-1263.26723617,0.000209,2]
[338354869,1726547446159,-314.4,0.00020992,2]
[338354872,1726547446168,-2000.0,0.00021,2]
[338354874,1726547446178,-500.0,0.00021,2]
[338354875,1726547446187,-1000.0,0.00021,2]
[338354877,1726547446195,-3000.0,0.00021,2]
[338354879,1726547446204,-645.7238552,0.00021,2]
[338354881,1726547446213,-3000.0,0.00021,2]
[338354883,1726547446222,-1227.0,0.00021,2]
[338354885,1726547446232,-1313.000001,0.00021,5]
[338354887,1726547446241,-3000.0,0.0002101,2]
[338354889,1726547446250,-3000.0,0.0002102,2]
[338354890,1726547446259,-3000.0,0.0002103,2]
[338354892,1726547446269,-3000.0,0.0002104,2]
[338354894,1726547446278,-3000.0,0.0002105,2]
[338354896,1726547446287,-3000.0,0.0002106,2]
[338354898,1726547446296,-151.0,0.0002106,2]
[338354900,1726547446306,-151.0,0.0002106,2]
[338354902,1726547446316,-279.253674,0.0002106,2]
[338354904,1726547446325,-279.253674,0.0002106,2]
[338354906,1726547446334,-151.0,0.0002106,2]
[338354909,1726547446343,-776.12065,0.0002106,2]
[338354910,1726547446352,-776.12065,0.0002106,2]
[338354912,1726547446361,-3000.0,0.0002107,2]
[338354914,1726547446371,-151.0,0.0002107,2]
[338354916,1726547446380,-151.0,0.0002107,2]
[338354918,1726547446389,-2904.060664,0.0002107,2]
[338354920,1726547446398,-2904.060664,0.0002107,2]
[338354922,1726547446407,-151.0,0.0002107,2]
[338354924,1726547446417,-332.852387,0.0002107,2]
[338354926,1726547446426,-151.0,0.0002107,2]
[338354928,1726547446435,-2279.977578,0.0002107,2]
[338354930,1726547446444,-332.852387,0.0002107,2]
[338354932,1726547446453,-2279.977578,0.0002107,2]
[338354934,1726547446462,-500.65443832,0.00021073,2]
[338354936,1726547446471,-151.46387446,0.00021073,2]
[338354938,1726547446480,-500.0,0.00021073,2]
[338354940,1726547446489,-350.93703334,0.00021073,2]
[338354942,1726547446498,-502.83527468,0.00021073,2]
[338354944,1726547446508,-500.0,0.00021073,2]
[338354946,1726547446518,-506.71155717,0.00021073,2]
[338354948,1726547446527,-307.10203343,0.00021073,2]
[338354950,1726547446537,-500.98500989,0.00021073,2]
[338354952,1726547446546,-3000.0,0.0002108,2]
[338354954,1726547446556,-1075.205265,0.0002108,2]
[338354956,1726547446565,-1075.205265,0.0002108,2]
[338354958,1726547446575,-524.852005,0.0002108,2]
[338354960,1726547446584,-524.852005,0.0002108,2]
[338354962,1726547446593,-819.44016,0.0002108,2]
[338354964,1726547446602,-819.44016,0.0002108,2]
[338354966,1726547446612,-151.0,0.0002108,2]
[338354968,1726547446621,-151.0,0.0002108,2]
[338354970,1726547446630,-151.0,0.0002108,2]
[338354972,1726547446639,-2416.18015,0.0002108,2]
[338354974,1726547446649,-2416.18015,0.0002108,2]
[338354976,1726547446658,-1578.423904,0.0002108,2]
[338354978,1726547446668,-1578.423904,0.0002108,2]
[338354980,1726547446677,-1415.185085,0.0002108,2]
[338354982,1726547446686,-1415.185085,0.0002108,2]
[338354984,1726547446696,-3000.0,0.0002109,2]
[338354987,1726547446707,-411.4520728,0.00021096,2]
[338354989,1726547446716,-411.4520728,0.00021096,2]
[338354991,1726547446726,-411.4520728,0.00021096,2]
[338354993,1726547446735,-411.4520728,0.00021096,2]
[338354995,1726547446744,-411.4520728,0.00021096,2]
[338354997,1726547446754,-411.4520728,0.00021096,2]
[338354999,1726547446763,-411.4520728,0.00021096,2]
[338355001,1726547446773,-411.4520728,0.00021096,2]
[338355003,1726547446782,-411.4520728,0.00021096,2]
[338355004,1726547446791,-408.9746797,0.00021096,2]
[338355006,1726547446800,-151.0,0.00021096,2]
[338355008,1726547446810,-474.402333,0.00021096,2]
[338355011,1726547446819,-474.402333,0.00021096,2]
[338355012,1726547446828,-339.433553,0.00021096,2]
[338355014,1726547446838,-339.433553,0.00021096,2]
[338355016,1726547446847,-151.0,0.00021096,2]
[338355018,1726547446856,-151.0,0.00021096,2]
[338355020,1726547446865,-685.082497,0.00021096,2]
[338355022,1726547446875,-685.082497,0.00021096,2]
[338355024,1726547446884,-160.0,0.00021099,2]
[338355026,1726547446894,-151.0,0.000211,2]
[338355028,1726547446903,-104835.81,0.000211,2]
[338355030,1726547446913,-188964.58065602,0.000211,2]
[338355091,1726547447601,-217.11676271,0.00017165,2]
[338355093,1726547447610,-21292.79490053,0.000211,2]
[338355245,1726547458483,1253.7,0.0001401,2]
[338355253,1726547641911,-4074.32520508,0.00017152,2]
[338355254,1726547641934,-300.0,0.00017251,2]
[338355255,1726547642362,300.0,0.00017251,2]
[338355256,1726547659097,-2157.42259492,0.00017252,2]
[338355257,1726547720868,370.951578,0.00013699,2]
[338355262,1726548172674,-186.593077,0.000144,2]
[338355263,1726548172696,-166.70247582,0.00014893,2]
[338355264,1726548172721,-772.8955268,0.00014912,2]
[338355265,1726548172743,-1385.871834,0.00014993,2]
[338355271,1726548257913,348.588452,0.00013699,2]
[338355272,1726548344634,33756.7099618,0.00012,2]
[338355273,1726548344660,164717.5163872,0.00012,2]
[338355275,1726548431142,-566.30651793,0.00014039,2]
[338355276,1726548508894,258.54644461,0.00013939,2]
[338355277,1726548516151,-1457.423516,0.00014039,2]
[338355278,1726548531793,21554.5695469,0.00013929,2]
[338355280,1726548549197,-270.55220627,0.00014039,2]
[338355281,1726548549219,-300.0,0.00014299,2]
[338355282,1726548549241,-300.0,0.00014299,2]
[338355283,1726548549261,-500.0,0.000143,2]
[338355284,1726548549282,-500.0,0.000143,2]
[338355285,1726548549303,-500.0,0.000143,2]
[338355286,1726548549326,-500.0,0.000143,2]
[338355287,1726548549347,-500.0,0.000143,2]
[338355288,1726548549368,-223.22578114,0.000143,2]
[338355289,1726548549390,-24900.0,0.00014466,2]